lending/lending_fUSD_20240610
["ID","MTS","AMOUNT","RATE_DAILY","PERIOD"]
[328983070,1718040656522,-500.0,0.00029997,4]
[328983071,1718040656531,-424.66663807,0.00029997,4]
[328983072,1718040656542,-500.0,0.00029997,4]
[328983073,1718040656552,-500.0,0.00029997,4]
[328983074,1718040656562,-166.92859344,0.00029997,4]
[328983075,1718040656572,-500.0,0.00029997,4]
[328983076,1718040656582,-500.0,0.00029997,4]
[328983077,1718040656593,-500.0,0.00029997,4]
[328983078,1718040656605,-500.0,0.00029997,4]
[328983079,1718040656617,-500.0,0.00029997,4]
[328983080,1718040656628,-500.0,0.00029997,4]
[328983081,1718040656639,-500.0,0.00029997,4]
[328983082,1718040656651,-500.0,0.00029997,4]
[328983083,1718040656661,-500.0,0.00029997,4]
[328983084,1718040656671,-500.0,0.00029997,4]
[328983085,1718040656680,-634.02432062,0.00029997,4]
[328983086,1718040656692,-500.0,0.00029997,4]
[328983087,1718040656702,-500.0,0.00029997,4]
[328983088,1718040656712,-500.0,0.00029997,4]
[328983089,1718040656722,-500.0,0.00029997,4]
[328983090,1718040656733,-500.0,0.00029997,4]
[328983091,1718040656743,-564.78380199,0.00029997,4]
[328983092,1718040656754,-500.0,0.00029997,4]
[328983093,1718040656764,-500.0,0.00029997,4]
[328983094,1718040656774,-195.7199643,0.00029997,4]
[328983095,1718040656784,-500.0,0.00029997,4]
[328983096,1718040656794,-500.0,0.00029997,4]
[328983097,1718040656804,-500.0,0.00029997,4]
[328983098,1718040656814,-500.0,0.00029997,4]
[328983099,1718040656824,-500.0,0.00029997,4]
[328983100,1718040656834,-632.63514089,0.00029997,4]
[328983101,1718040656845,-500.0,0.00029997,4]
[328983102,1718040656855,-500.0,0.00029997,4]
[328983103,1718040656866,-500.0,0.00029997,4]
[328983104,1718040656876,-500.0,0.00029997,4]
[328983105,1718040656887,-500.0,0.00029997,4]
[328983106,1718040656896,-500.0,0.00029997,4]
[328983107,1718040656907,-500.0,0.00029997,4]
[328983108,1718040656916,-500.0,0.00029997,4]
[328983109,1718040656926,-500.0,0.00029997,4]
[328983110,1718040656936,-501.15593939,0.00029997,4]
[328983111,1718040656947,-500.0,0.00029997,4]
[328983112,1718040656958,-500.0,0.00029997,4]
[328983113,1718040656968,-500.0,0.00029997,4]
[328983114,1718040656978,-500.0,0.00029997,4]
[328983115,1718040656988,-413.72228368,0.00029997,4]
[328983116,1718040656998,-500.0,0.00029997,4]
[328983117,1718040657009,-500.0,0.00029997,4]
[328983118,1718040657025,-500.0,0.00029997,4]
[328983119,1718040657037,-500.0,0.00029997,4]
[328983120,1718040657048,-500.0,0.00029997,4]
[328983121,1718040657059,-500.0,0.00029997,4]
[328983122,1718040657071,-500.0,0.00029997,4]
[328983123,1718040657082,-345.72079813,0.00029997,4]
[328983124,1718040657093,-500.0,0.00029997,4]
[328983125,1718040657104,-500.0,0.00029997,4]
[328983126,1718040657115,-500.0,0.00029997,4]
[328983127,1718040657128,-500.0,0.00029997,4]
[328983128,1718040657139,-500.0,0.00029997,4]
[328983129,1718040657150,-500.0,0.00029997,4]
[328983130,1718040657161,-500.0,0.00029997,4]
[328983131,1718040657171,-500.0,0.00029997,4]
[328983132,1718040657181,-500.0,0.00029997,4]
[328983133,1718040657191,-500.0,0.00029997,4]
[328983134,1718040657202,-500.0,0.00029997,4]
[328983135,1718040657213,-500.0,0.00029997,4]
[328983136,1718040657223,-500.0,0.00029997,4]
[328983137,1718040657234,-500.0,0.00029997,4]
[328983138,1718040657244,-500.0,0.00029997,4]
[328983139,1718040657254,-500.0,0.00029997,4]
[328983140,1718040657267,-500.0,0.00029997,4]
[328983141,1718040657277,-500.0,0.00029997,4]
[328983142,1718040657288,-500.0,0.00029997,4]
[328983143,1718040657298,-500.0,0.00029997,4]
[328983144,1718040657309,-500.0,0.00029997,4]
[328983145,1718040657319,-500.0,0.00029997,4]
[328983146,1718040657330,-500.0,0.00029997,4]
[328983147,1718040657340,-500.0,0.00029997,4]
[328983148,1718040657351,-500.0,0.00029997,4]
[328983149,1718040657361,-500.0,0.00029997,4]
[328983150,1718040657372,-500.0,0.00029997,4]
[328983151,1718040657382,-500.0,0.00029997,4]
[328983152,1718040657392,-500.0,0.00029997,4]
[328983153,1718040657402,-500.0,0.00029997,4]
[328983154,1718040657413,-13605.12,0.00029997,2]
[328983155,1718040657423,-500.0,0.00029997,4]
[328983156,1718040657433,-500.0,0.00029997,4]
[328983157,1718040657443,-500.0,0.00029997,4]
[328983158,1718040657454,-500.0,0.00029997,4]
[328983159,1718040657464,-500.0,0.00029997,4]
[328983160,1718040657474,-500.0,0.00029997,4]
[328983161,1718040657487,-518.68339783,0.00029997,4]
[328983162,1718040657497,-209.49241931,0.00029997,4]
[328983163,1718040657508,-500.0,0.00029997,4]
[328983164,1718040657520,-500.0,0.00029997,4]
[328983165,1718040657531,-500.0,0.00029997,4]
[328983166,1718040657542,-500.0,0.00029997,4]
[328983167,1718040657553,-500.0,0.00029997,4]
[328983168,1718040657564,-664.89,0.00029997,4]
[328983169,1718040657574,-500.0,0.00029997,4]
[328983170,1718040657584,-664.89,0.00029997,4]
[328983171,1718040657594,-269.883448,0.00029997,7]
[328983172,1718040657606,-500.0,0.00029997,4]
[328983173,1718040657616,-500.0,0.00029997,4]
[328983174,1718040657626,-500.0,0.00029997,4]
[328983175,1718040657636,-500.0,0.00029997,4]
[328983176,1718040657646,-676.24,0.00029997,4]
[328983177,1718040657656,-500.0,0.00029997,4]
[328983178,1718040657666,-676.24,0.00029997,4]
[328983179,1718040657675,-500.0,0.00029997,4]
[328983180,1718040657688,-500.0,0.00029997,4]
[328983181,1718040657699,-285.04489291,0.00029997,4]
[328983182,1718040657710,-500.0,0.00029997,4]
[328983183,1718040657720,-500.0,0.00029997,4]
[328983184,1718040657730,-500.0,0.00029997,4]
[328983185,1718040657739,-500.0,0.00029997,4]
[328983186,1718040657749,-500.0,0.00029997,4]
[328983187,1718040657759,-500.0,0.00029997,4]
[328983188,1718040657771,-500.0,0.00029997,4]
[328983189,1718040657781,-500.0,0.00029997,4]
[328983190,1718040657791,-500.0,0.00029997,4]
[328983191,1718040657801,-183.57606342,0.00029997,4]
[328983192,1718040657813,-151.0,0.00029997,7]
[328983193,1718040657823,-500.0,0.00029997,4]
[328983194,1718040657834,-500.0,0.00029997,4]
[328983195,1718040657844,-699.23,0.00029997,4]
[328983196,1718040657854,-151.0,0.00029997,7]
[328983197,1718040657865,-699.23,0.00029997,4]
[328983198,1718040657875,-699.23,0.00029997,4]
[328983199,1718040657886,-699.23,0.00029997,4]
[328983200,1718040657896,-699.23,0.00029997,4]
[328983201,1718040657906,-699.23,0.00029997,4]
[328983202,1718040657916,-699.23,0.00029997,4]
[328983203,1718040657927,-699.23,0.00029997,4]
[328983204,1718040657937,-699.23,0.00029997,4]
[328983205,1718040657947,-699.23,0.00029997,4]
[328983206,1718040657957,-699.23,0.00029997,4]
[328983207,1718040657968,-583.64,0.00029997,4]
[328983208,1718040657980,-2096.98,0.00029997,4]
[328983209,1718040657991,-2096.98,0.00029997,4]
[328983210,1718040658001,-151.0,0.00029997,7]
[328983211,1718040658012,-500.0,0.00029997,4]
[328983212,1718040658024,-153.302568,0.00029997,7]
[328983213,1718040658035,-500.0,0.00029997,4]
[328983214,1718040658045,-500.0,0.00029997,4]
[328983215,1718040658056,-500.0,0.00029997,4]
[328983216,1718040658067,-500.0,0.00029997,4]
[328983217,1718040658078,-607.35104942,0.00029997,4]
[328983218,1718040658089,-500.0,0.00029997,4]
[328983219,1718040658100,-500.0,0.00029997,4]
[328983220,1718040658111,-500.0,0.00029997,4]
[328983221,1718040658122,-500.0,0.00029997,4]
[328983222,1718040658136,-500.0,0.00029997,4]
[328983223,1718040658147,-500.0,0.00029997,4]
[328983224,1718040658158,-500.0,0.00029997,4]
[328983225,1718040658168,-500.0,0.00029997,4]
[328983226,1718040658180,-500.0,0.00029997,4]
[328983227,1718040658190,-500.0,0.00029997,4]
[328983228,1718040658202,-500.0,0.00029997,4]
[328983229,1718040658213,-555.86261208,0.00029997,4]
[328983230,1718040658224,-500.0,0.00029997,4]
[328983231,1718040658234,-500.0,0.00029997,4]
[328983232,1718040658244,-151.0,0.00029997,7]
[328983233,1718040658255,-629.1,0.00029997,4]
[328983234,1718040658267,-500.0,0.00029997,4]
[328983235,1718040658276,-629.1,0.00029997,4]
[328983236,1718040658286,-2101.27,0.00029997,4]
[328983237,1718040658296,-2101.27,0.00029997,4]
[328983238,1718040658305,-2101.27,0.00029997,4]
[328983239,1718040658315,-2101.27,0.00029997,4]
[328983240,1718040658325,-2101.27,0.00029997,4]
[328983241,1718040658336,-2101.27,0.00029997,4]
[328983242,1718040658346,-2101.27,0.00029997,4]
[328983243,1718040658356,-2101.27,0.00029997,4]
[328983244,1718040658366,-2101.27,0.00029997,4]
[328983245,1718040658377,-2101.27,0.00029997,4]
[328983246,1718040658388,-2101.27,0.00029997,4]
[328983247,1718040658399,-365.27132275,0.00029997,4]
[328983248,1718040658409,-151.0,0.00029997,7]
[328983249,1718040658419,-2319.07,0.00029997,4]
[328983250,1718040658428,-2319.07,0.00029997,4]
[328983251,1718040658438,-2319.07,0.00029997,4]
[328983252,1718040658448,-2319.07,0.00029997,4]
[328983253,1718040658459,-2319.07,0.00029997,4]
[328983254,1718040658468,-2319.07,0.00029997,4]
[328983255,1718040658479,-2319.07,0.00029997,4]
[328983256,1718040658489,-2319.07,0.00029997,4]
[328983257,1718040658500,-2319.07,0.00029997,4]
[328983258,1718040658510,-2319.07,0.00029997,4]
[328983259,1718040658523,-2319.07,0.00029997,4]
[328983260,1718040658533,-151.0,0.00029997,7]
[328983261,1718040658543,-500.0,0.00029997,4]
[328983262,1718040658552,-151.0,0.00029997,7]
[328983263,1718040658562,-830.95,0.00029997,4]
[328983264,1718040658572,-830.95,0.00029997,4]
[328983265,1718040658581,-1098.46,0.00029997,4]
[328983266,1718040658591,-1098.46,0.00029997,4]
[328983267,1718040658601,-156.100432,0.00029997,7]
[328983268,1718040658615,-500.0,0.00029997,4]
[328983269,1718040658625,-500.0,0.00029997,4]
[328983270,1718040658636,-500.0,0.00029997,4]
[328983271,1718040658647,-500.0,0.00029997,4]
[328983272,1718040658657,-500.0,0.00029997,4]
[328983273,1718040658666,-500.0,0.00029997,4]
[328983274,1718040658676,-500.0,0.00029997,4]
[328983275,1718040658690,-500.0,0.00029997,4]
[328983276,1718040658700,-500.0,0.00029997,4]
[328983277,1718040658710,-613.70350725,0.00029997,4]
[328983278,1718040658719,-545.5,0.00029997,4]
[328983279,1718040658729,-545.5,0.00029997,4]
[328983280,1718040658738,-2213.63,0.00029997,4]
[328983281,1718040658748,-500.0,0.00029997,4]
[328983282,1718040658758,-500.0,0.00029997,4]
[328983283,1718040658768,-1837.85,0.00029997,4]
[328983284,1718040658778,-1837.85,0.00029997,4]
[328983285,1718040658788,-1837.85,0.00029997,4]
[328983286,1718040658797,-1837.85,0.00029997,4]
[328983287,1718040658807,-1837.85,0.00029997,4]
[328983288,1718040658816,-1837.85,0.00029997,4]
[328983289,1718040658825,-1837.85,0.00029997,4]
[328983290,1718040658835,-1837.85,0.00029997,4]
[328983291,1718040658844,-1837.85,0.00029997,4]
[328983292,1718040658855,-1837.85,0.00029997,4]
[328983293,1718040658864,-1837.85,0.00029997,4]
[328983294,1718040658874,-500.0,0.00029997,4]
[328983295,1718040658883,-252.3404034,0.00029997,4]
[328983296,1718040658893,-500.0,0.00029997,2]
[328983297,1718040658903,-500.0,0.00029997,2]
[328983298,1718040658912,-500.0,0.00029997,2]
[328983299,1718040658922,-500.0,0.00029997,2]
[328983300,1718040658932,-500.0,0.00029997,2]
[328983301,1718040658941,-500.0,0.00029997,2]
[328983302,1718040658951,-500.0,0.00029997,2]
[328983303,1718040658960,-172.0,0.00029997,2]
[328983304,1718040658970,-500.0,0.00029997,4]
[328983305,1718040658980,-500.0,0.00029997,4]
[328983306,1718040658990,-500.0,0.00029997,4]
[328983307,1718040658999,-608.81,0.00029997,4]
[328983308,1718040659009,-608.81,0.00029997,4]
[328983309,1718040659020,-500.0,0.00029997,2]
[328983310,1718040659029,-41182.87726848,0.00029997,2]
[328983311,1718040659039,-183.31723984,0.00029998,2]
[328983312,1718040659049,-325.60601034,0.00029998,2]
[328983313,1718040659059,-1276.67123089,0.00029998,2]
[328983314,1718040659069,-161.65805623,0.00029998,10]
[328983315,1718040659078,-1204.22599662,0.00029998,2]
[328983316,1718040659088,-258.13957769,0.00029998,2]
[328983317,1718040659098,-155.0,0.00029998,2]
[328983318,1718040659108,-281.1234229,0.00029998,2]
[328983319,1718040659117,-169.79840496,0.00029998,2]
[328983320,1718040659131,-500.0,0.00029998,2]
[328983321,1718040659140,-217.697397,0.00029998,7]
[328983322,1718040659150,-155.0,0.00029998,3]
[328983323,1718040659160,-2309.56445021,0.00029998,2]
[328983324,1718040659169,-155.20156601,0.00029998,2]
[328983325,1718040659179,-155.54124141,0.00029998,2]
[328983326,1718040659189,-170.91947149,0.00029998,2]
[328983327,1718040659198,-155.60142893,0.00029998,2]
[328983328,1718040659208,-203.45287372,0.00029998,2]
[328983329,1718040659217,-155.49683224,0.00029998,2]
[328983330,1718040659227,-155.64006224,0.00029998,2]
[328983331,1718040659237,-3130.019957,0.00029998,2]
[328983332,1718040659247,-155.17529806,0.00029998,2]
[328983333,1718040659256,-296.03551099,0.00029998,2]
[328983334,1718040659267,-155.0,0.00029998,2]
[328983335,1718040659276,-156.70564455,0.00029998,2]
[328983336,1718040659286,-4175.18689802,0.00029998,2]
[328983337,1718040659295,-304.5989442,0.00029998,2]
[328983338,1718040659305,-228.21076762,0.00029998,2]
[328983339,1718040659314,-155.21929113,0.00029998,2]
[328983340,1718040659324,-162.35468145,0.00029998,2]
[328983341,1718040659334,-2015.81369186,0.00029998,2]
[328983342,1718040659344,-472.64083293,0.00029998,2]
[328983343,1718040659354,-325.54236697,0.00029998,2]
[328983344,1718040659364,-151.0,0.00029998,7]
[328983345,1718040659375,-151.621177,0.00029998,7]
[328983346,1718040659385,-217.1710123,0.00029998,2]
[328983347,1718040659394,-797.84849977,0.00029998,2]
[328983348,1718040659404,-3565.22156148,0.00029998,2]
[328983349,1718040659413,-306.51547453,0.00029998,2]
[328983350,1718040659422,-155.17031669,0.00029998,2]
[328983351,1718040659431,-306.53561288,0.00029998,2]
[328983352,1718040659441,-500.0,0.00029998,4]
[328983353,1718040659568,-500.0,0.00029998,4]
[328983354,1718040659578,-151.0,0.00029998,7]
[328983355,1718040659588,-179.9474479,0.00029998,2]
[328983356,1718040659599,-156.85861452,0.00029998,2]
[328983357,1718040659613,-156.45668317,0.00029998,2]
[328983358,1718040659622,-10973.78387867,0.00029998,2]
[328983359,1718040659632,-179.89516541,0.00029998,2]
[328983360,1718040659643,-1479.16396653,0.00029998,2]
[328983361,1718040659653,-250.16489583,0.00029998,2]
[328983362,1718040659663,-166.72253563,0.00029998,2]
[328983363,1718040659673,-155.0,0.00029998,2]
[328983364,1718040659684,-208.9116436,0.00029998,2]
[328983365,1718040659694,-446.80079403,0.00029998,2]
[328983366,1718040659704,-155.0,0.00029998,2]
[328983367,1718040659713,-529.82691404,0.00029998,2]
[328983368,1718040659723,-155.41908413,0.00029998,2]
[328983369,1718040659732,-480.88976442,0.00029998,2]
[328983370,1718040659742,-155.0,0.00029998,2]
[328983371,1718040659752,-176.41950673,0.00029998,2]
[328983372,1718040659761,-172.13878346,0.00029998,2]
[328983373,1718040659772,-155.35331114,0.00029998,2]
[328983374,1718040659782,-155.0,0.00029998,2]
[328983375,1718040659791,-156.64079964,0.00029998,2]
[328983376,1718040659801,-162.52861424,0.00029998,2]
[328983377,1718040659810,-380.50611816,0.00029998,4]
[328983378,1718040659820,-170.69238991,0.00029998,2]
[328983379,1718040659829,-155.78676667,0.00029998,2]
[328983380,1718040659838,-407.24197213,0.00029998,2]
[328983381,1718040659848,-241.59005071,0.00029998,2]
[328983382,1718040659857,-429.78706435,0.00029998,2]
[328983383,1718040659867,-178.3550662,0.00029998,2]
[328983384,1718040659876,-151.0,0.00029998,7]
[328983385,1718040659885,-205.60285074,0.00029998,2]
[328983386,1718040659894,-151.0,0.00029998,7]
[328983387,1718040659904,-151.0,0.00029998,7]
[328983388,1718040659913,-151.0,0.00029998,7]
[328983389,1718040659922,-156.054311,0.00029998,7]
[328983390,1718040659932,-391.51965964,0.00029998,3]
[328983391,1718040659941,-151.0,0.00029998,7]
[328983392,1718040659950,-164.076309,0.00029998,7]
[328983393,1718040659959,-151.0,0.00029998,7]
[328983394,1718040659969,-155.0,0.00029998,2]
[328983395,1718040659979,-183.78610967,0.00029998,2]
[328983396,1718040659989,-151.0,0.00029998,7]
[328983397,1718040659999,-3893.9489826,0.00029998,2]
[328983398,1718040660009,-151.0,0.00029998,7]
[328983399,1718040660019,-1806.44529912,0.00029998,2]
[328983400,1718040660029,-160.862631,0.00029998,7]
[328983401,1718040660039,-151.0,0.00029998,7]
[328983402,1718040660050,-151.0,0.00029998,7]
[328983403,1718040660060,-152.783005,0.00029998,7]
[328983404,1718040660070,-151.0,0.00029998,7]
[328983405,1718040660080,-158.133372,0.00029998,7]
[328983406,1718040660091,-151.0,0.00029998,7]
[328983407,1718040660101,-151.0,0.00029998,7]
[328983408,1718040660112,-151.0,0.00029998,7]
[328983409,1718040660122,-157.750755,0.00029998,7]
[328983410,1718040660133,-154.877397,0.00029998,7]
[328983411,1718040660144,-161.755035,0.00029998,7]
[328983412,1718040660154,-151.0,0.00029998,7]
[328983413,1718040660164,-500.0,0.00029998,4]
[328983414,1718040660174,-151.0,0.00029998,7]
[328983415,1718040660184,-151.0,0.00029998,7]
[328983416,1718040660195,-500.0,0.00029998,4]
[328983417,1718040660205,-583.64,0.00029998,4]
[328983418,1718040660216,-583.64,0.00029998,4]
[328983419,1718040660226,-500.0,0.00029998,4]
[328983420,1718040660237,-500.0,0.00029998,4]
[328983421,1718040660247,-500.0,0.00029998,4]
[328983422,1718040660258,-500.0,0.00029998,4]
[328983423,1718040660269,-181.09721832,0.00029998,4]
[328983424,1718040660279,-1098.46,0.00029998,4]
[328983425,1718040660289,-2213.63,0.00029998,4]
[328983426,1718040660299,-500.0,0.00029998,4]
[328983427,1718040660309,-500.0,0.00029998,4]
[328983428,1718040660319,-500.0,0.00029998,2]
[328983429,1718040660329,-151.0,0.00029999,2]
[328983430,1718040660339,-4590.16420874,0.00029999,2]
[328983431,1718040660348,-5895.19145889,0.00029999,2]
[328983432,1718040660358,-208.9443675,0.00029999,2]
[328983433,1718040660368,-503.05,0.00029999,4]
[328983434,1718040660378,-503.05,0.00029999,4]
[328983435,1718040660388,-503.05,0.00029999,4]
[328983436,1718040660398,-503.05,0.00029999,4]
[328983437,1718040660407,-503.05,0.00029999,4]
[328983438,1718040660418,-503.05,0.00029999,4]
[328983439,1718040660427,-503.05,0.00029999,4]
[328983440,1718040660437,-503.05,0.00029999,4]
[328983441,1718040660448,-503.05,0.00029999,4]
[328983442,1718040660458,-503.23327534,0.00029999,4]
[328983443,1718040660467,-500.0,0.00029999,4]
[328983444,1718040660478,-364.8569056,0.00029999,4]
[328983445,1718040660487,-150.0,0.00029999,2]
[328983446,1718040660502,-4000.0,0.00029999,2]
[328983447,1718040660512,-500.0,0.00029999,4]
[328983448,1718040660524,-500.0,0.00029999,4]
[328983449,1718040660533,-480.95239753,0.00029999,4]
[328983450,1718040660543,-500.0,0.00029999,4]
[328983451,1718040660553,-500.0,0.00029999,4]
[328983452,1718040660563,-500.0,0.00029999,4]
[328983453,1718040660572,-500.0,0.00029999,4]
[328983454,1718040660582,-479.94553782,0.00029999,4]
[328983455,1718040660591,-1522.44,0.00029999,4]
[328983456,1718040660601,-1522.44,0.00029999,4]
[328983457,1718040660615,-1522.44,0.00029999,4]
[328983458,1718040660625,-1522.44,0.00029999,4]
[328983459,1718040660634,-1522.44,0.00029999,4]
[328983460,1718040660644,-1522.44,0.00029999,4]
[328983461,1718040660654,-1522.44,0.00029999,4]
[328983462,1718040660664,-1522.44,0.00029999,4]
[328983463,1718040660674,-1522.54068351,0.00029999,4]
[328983464,1718040660687,-500.0,0.00029999,4]
[328983465,1718040660697,-500.0,0.00029999,4]
[328983466,1718040660707,-500.0,0.00029999,4]
[328983467,1718040660717,-500.0,0.00029999,4]
[328983468,1718040660727,-500.0,0.00029999,4]
[328983469,1718040660737,-333.46731727,0.00029999,4]
[328983470,1718040660747,-500.0,0.00029999,4]
[328983471,1718040660756,-500.0,0.00029999,4]
[328983472,1718040660767,-306.16342238,0.00029999,4]
[328983473,1718040660778,-500.0,0.00029999,4]
[328983474,1718040660788,-500.0,0.00029999,4]
[328983475,1718040660797,-500.0,0.00029999,4]
[328983476,1718040660807,-500.0,0.00029999,4]
[328983477,1718040660816,-500.0,0.00029999,4]
[328983478,1718040660826,-500.0,0.00029999,4]
[328983479,1718040660836,-500.0,0.00029999,4]
[328983480,1718040660845,-500.0,0.00029999,4]
[328983481,1718040660855,-294.26061908,0.00029999,4]
[328983482,1718040660866,-1062.93,0.00029999,4]
[328983483,1718040660876,-1062.93,0.00029999,4]
[328983484,1718040660886,-1062.93,0.00029999,4]
[328983485,1718040660897,-1062.93,0.00029999,4]
[328983486,1718040660907,-1062.93,0.00029999,4]
[328983487,1718040660917,-1062.93,0.00029999,4]
[328983488,1718040660927,-1062.93,0.00029999,4]
[328983489,1718040660936,-1062.93,0.00029999,4]
[328983490,1718040660947,-1063.02846639,0.00029999,4]
[328983491,1718040660957,-500.0,0.00029999,4]
[328983492,1718040660968,-500.0,0.00029999,4]
[328983493,1718040660978,-324.28259708,0.00029999,4]
[328983494,1718040660988,-500.0,0.00029999,4]
[328983495,1718040660999,-500.0,0.00029999,4]
[328983496,1718040661009,-500.0,0.00029999,4]
[328983497,1718040661020,-500.0,0.00029999,4]
[328983498,1718040661030,-500.0,0.00029999,4]
[328983499,1718040661040,-500.0,0.00029999,4]
[328983500,1718040661051,-500.0,0.00029999,4]
[328983501,1718040661061,-500.0,0.00029999,4]
[328983502,1718040661071,-500.0,0.00029999,4]
[328983503,1718040661081,-500.0,0.00029999,4]
[328983504,1718040661091,-500.0,0.00029999,4]
[328983505,1718040661101,-500.0,0.00029999,4]
[328983506,1718040661111,-500.0,0.00029999,4]
[328983507,1718040661121,-500.0,0.00029999,4]
[328983508,1718040661134,-500.0,0.00029999,4]
[328983509,1718040661144,-500.0,0.00029999,4]
[328983510,1718040661155,-500.0,0.00029999,4]
[328983511,1718040661165,-500.0,0.00029999,4]
[328983512,1718040661175,-500.0,0.00029999,4]
[328983513,1718040661185,-477.88581651,0.00029999,4]
[328983514,1718040661195,-500.0,0.00029999,4]
[328983515,1718040661205,-365.33844953,0.00029999,4]
[328983516,1718040661215,-602.24089432,0.00029999,4]
[328983517,1718040661225,-500.0,0.00029999,4]
[328983518,1718040661235,-500.0,0.00029999,4]
[328983519,1718040661244,-500.0,0.00029999,4]
[328983520,1718040661253,-500.0,0.00029999,4]
[328983521,1718040661263,-500.0,0.00029999,4]
[328983522,1718040661274,-500.0,0.00029999,4]
[328983523,1718040661284,-500.0,0.00029999,4]
[328983524,1718040661294,-324.45235834,0.00029999,4]
[328983525,1718040661304,-500.0,0.00029999,4]
[328983526,1718040661314,-500.0,0.00029999,4]
[328983527,1718040661323,-330.11205776,0.00029999,4]
[328983528,1718040661333,-500.0,0.00029999,4]
[328983529,1718040661342,-500.0,0.00029999,4]
[328983530,1718040661352,-500.0,0.00029999,4]
[328983531,1718040661362,-500.0,0.00029999,4]
[328983532,1718040661372,-539.62912837,0.00029999,4]
[328983533,1718040661383,-500.0,0.00029999,4]
[328983534,1718040661392,-500.0,0.00029999,4]
[328983535,1718040661401,-500.0,0.00029999,4]
[328983536,1718040661411,-500.0,0.00029999,4]
[328983537,1718040661421,-500.0,0.00029999,4]
[328983538,1718040661431,-500.0,0.00029999,4]
[328983539,1718040661441,-500.0,0.00029999,4]
[328983540,1718040661450,-500.0,0.00029999,4]
[328983541,1718040661461,-567.81056027,0.00029999,4]
[328983542,1718040661470,-526.72123195,0.00029999,4]
[328983543,1718040661481,-500.0,0.00029999,4]
[328983544,1718040661491,-500.0,0.00029999,4]
[328983545,1718040661500,-664.89,0.00029999,4]
[328983546,1718040661510,-500.0,0.00029999,4]
[328983547,1718040661521,-664.89,0.00029999,4]
[328983548,1718040661531,-500.0,0.00029999,4]
[328983549,1718040661540,-664.89,0.00029999,4]
[328983550,1718040661550,-361.58244647,0.00029999,4]
[328983551,1718040661560,-664.89,0.00029999,4]
[328983552,1718040661569,-664.89,0.00029999,4]
[328983553,1718040661580,-664.89,0.00029999,4]
[328983554,1718040661590,-664.89,0.00029999,4]
[328983555,1718040661601,-664.89,0.00029999,4]
[328983556,1718040661616,-664.89,0.00029999,4]
[328983557,1718040661626,-664.89,0.00029999,4]
[328983558,1718040661636,-664.89,0.00029999,4]
[328983559,1718040661648,-664.89,0.00029999,4]
[328983560,1718040661658,-664.89,0.00029999,4]
[328983561,1718040661668,-664.98957801,0.00029999,4]
[328983562,1718040661679,-676.24,0.00029999,4]
[328983563,1718040661690,-676.24,0.00029999,4]
[328983564,1718040661700,-676.24,0.00029999,4]
[328983565,1718040661710,-676.24,0.00029999,4]
[328983566,1718040661719,-676.24,0.00029999,4]
[328983567,1718040661729,-676.24,0.00029999,4]
[328983568,1718040661738,-676.24,0.00029999,4]
[328983569,1718040661747,-676.24,0.00029999,4]